[Event "*** Titled Tuesday Blitz"]
[Site "Chess.com"]
[Date "2018.04.03"]
[Round "7"]
[White "DrHolmes13"]
[Black "Firouzja2003"]
[Result "1-0"]
[WhiteElo "2492"]
[BlackElo "2743"]
[TimeControl "180+2"]
[EndTime "14:28:31 PDT"]
[Termination "DrHolmes13 won by resignation"]

1. d4 {[%clk 0:03:01.9]} 1... Nf6 {[%clk 0:03:00.5]} 2. c4 {[%clk 0:03:02.6]}
2... e6 {[%clk 0:03:01.9]} 3. Nf3 {[%clk 0:03:02.4]} 3... d5 {[%clk 0:03:02.2]}
4. Nc3 {[%clk 0:03:02.1]} 4... c6 {[%clk 0:03:03.4]} 5. g3 {[%clk 0:03:00.9]}
5... Nbd7 {[%clk 0:03:01.3]} 6. Bg2 {[%clk 0:03:01.2]} 6... Be7 {[%clk
0:03:02.9]} 7. O-O {[%clk 0:03:00.9]} 7... O-O {[%clk 0:03:04.4]} 8. Qd3 {[%clk
0:03:01.9]} 8... b6 {[%clk 0:03:00.7]} 9. Rd1 {[%clk 0:03:01.2]} 9... Ba6 {[%clk
0:03:01.8]} 10. b3 {[%clk 0:03:01.1]} 10... Rc8 {[%clk 0:03:02.8]} 11. e4 {[%clk
0:03:00.9]} 11... c5 {[%clk 0:02:58.9]} 12. exd5 {[%clk 0:02:59.3]} 12... exd5
{[%clk 0:02:59.6]} 13. dxc5 {[%clk 0:02:58.1]} 13... dxc4 {[%clk 0:02:56.4]} 14.
bxc4 {[%clk 0:02:56]} 14... Bxc5 {[%clk 0:02:56.5]} 15. Nb5 {[%clk 0:02:53]}
15... Bxb5 {[%clk 0:02:46]} 16. cxb5 {[%clk 0:02:53.8]} 16... Re8 {[%clk
0:02:04.7]} 17. Bb2 {[%clk 0:02:52.4]} 17... Ne4 {[%clk 0:01:54.4]} 18. Qxd7
{[%clk 0:02:40.7]} 18... Nxf2 {[%clk 0:01:55.1]} 19. Rd5 {[%clk 0:02:34.8]}
19... Ne4+ {[%clk 0:00:53.9]} 20. Bd4 {[%clk 0:02:26]} 20... Qf6 {[%clk
0:00:54.1]} 21. Rxc5 {[%clk 0:02:19.1]} 21... Nxc5 {[%clk 0:00:49.2]} 22. Qxe8+
{[%clk 0:02:19.6]} 1-0

[Event "*** Titled Tuesday Blitz"]
[Site "Chess.com"]
[Date "2018.04.03"]
[Round "7"]
[White "dolynachess"]
[Black "Manukyan_Artak"]
[Result "1-0"]
[WhiteElo "2404"]
[BlackElo "2382"]
[TimeControl "180+2"]
[EndTime "14:28:37 PDT"]
[Termination "dolynachess won by resignation"]

1. d4 {[%clk 0:03:01.9]} 1... Nf6 {[%clk 0:03:00.4]} 2. c4 {[%clk 0:03:03.3]}
2... d6 {[%clk 0:03:00.8]} 3. Nc3 {[%clk 0:03:01.6]} 3... g6 {[%clk 0:03:01.6]}
4. e4 {[%clk 0:03:01.6]} 4... Bg7 {[%clk 0:03:02.7]} 5. Nf3 {[%clk 0:03:03.1]}
5... O-O {[%clk 0:03:03.7]} 6. Be2 {[%clk 0:03:04.5]} 6... e5 {[%clk 0:03:04.8]}
7. d5 {[%clk 0:03:06.1]} 7... a5 {[%clk 0:02:57.5]} 8. Be3 {[%clk 0:03:06.2]}
8... Ng4 {[%clk 0:02:54]} 9. Bg5 {[%clk 0:03:06.5]} 9... Bf6 {[%clk 0:02:39.8]}
10. Bxf6 {[%clk 0:03:00.4]} 10... Qxf6 {[%clk 0:02:36.4]} 11. h3 {[%clk
0:02:59.5]} 11... Nh6 {[%clk 0:02:36.3]} 12. a3 {[%clk 0:02:59.8]} 12... Kg7
{[%clk 0:02:22.1]} 13. b4 {[%clk 0:02:59.5]} 13... axb4 {[%clk 0:02:14]} 14.
axb4 {[%clk 0:03:01.4]} 14... Rxa1 {[%clk 0:02:15.4]} 15. Qxa1 {[%clk
0:03:01.1]} 15... Na6 {[%clk 0:02:17.2]} 16. Qa3 {[%clk 0:03:01.3]} 16... Qf4
{[%clk 0:02:11]} 17. c5 {[%clk 0:02:55.4]} 17... f5 {[%clk 0:01:33.1]} 18. g3
{[%clk 0:02:52.7]} 18... fxe4 {[%clk 0:01:30.8]} 19. gxf4 {[%clk 0:02:51.9]}
19... exf3 {[%clk 0:01:32.1]} 20. Bxa6 {[%clk 0:02:47.5]} 20... bxa6 {[%clk
0:01:32]} 21. fxe5 {[%clk 0:02:46.9]} 21... dxe5 {[%clk 0:01:30.8]} 22. Qa5
{[%clk 0:02:46.6]} 22... Rf7 {[%clk 0:01:24.4]} 23. Rg1 {[%clk 0:02:43.9]} 23...
Bxh3 {[%clk 0:01:24.1]} 24. Qxa6 {[%clk 0:02:44]} 24... Nf5 {[%clk 0:01:21.8]}
25. Ne4 {[%clk 0:02:34.2]} 25... Nd4 {[%clk 0:01:20.4]} 26. Kd2 {[%clk
0:02:29.7]} 26... h6 {[%clk 0:01:09.8]} 27. Qxg6+ {[%clk 0:02:28]} 1-0

[Event "*** Titled Tuesday Blitz"]
[Site "Chess.com"]
[Date "2018.04.03"]
[Round "7"]
[White "Chesscoach_Golichenko"]
[Black "GMAkobianSTL"]
[Result "0-1"]
[WhiteElo "2488"]
[BlackElo "2660"]
[TimeControl "180+2"]
[EndTime "14:28:51 PDT"]
[Termination "GMAkobianSTL won by resignation"]

1. d4 {[%clk 0:03:01.9]} 1... Nf6 {[%clk 0:02:59.2]} 2. c4 {[%clk 0:03:01.6]}
2... b6 {[%clk 0:03:00]} 3. f3 {[%clk 0:03:00.2]} 3... Nc6 {[%clk 0:02:58.9]} 4.
e4 {[%clk 0:03:00.5]} 4... e5 {[%clk 0:02:59.2]} 5. Ne2 {[%clk 0:02:48.4]} 5...
exd4 {[%clk 0:02:59.3]} 6. Nxd4 {[%clk 0:02:49.3]} 6... Nxd4 {[%clk 0:03:00]} 7.
Qxd4 {[%clk 0:02:49.5]} 7... Bb7 {[%clk 0:02:46]} 8. Be3 {[%clk 0:02:48.7]} 8...
Bc5 {[%clk 0:02:44.6]} 9. Qd2 {[%clk 0:02:44.6]} 9... O-O {[%clk 0:02:37.8]} 10.
Nc3 {[%clk 0:02:42.3]} 10... d6 {[%clk 0:02:37.1]} 11. Be2 {[%clk 0:02:41.2]}
11... Nh5 {[%clk 0:02:33.1]} 12. O-O {[%clk 0:02:40.1]} 12... Qg5 {[%clk
0:02:15.7]} 13. Nd1 {[%clk 0:01:59.5]} 13... f5 {[%clk 0:02:02.3]} 14. exf5
{[%clk 0:01:48]} 14... Rae8 {[%clk 0:01:58.8]} 15. g4 {[%clk 0:00:26.6]} 15...
Rxe3 {[%clk 0:01:54.7]} 0-1

[Event "*** Titled Tuesday Blitz"]
[Site "Chess.com"]
[Date "2018.04.03"]
[Round "7"]
[White "Danny_The_Donkey"]
[Black "pKiLz5Rn9b"]
[Result "0-1"]
[WhiteElo "2645"]
[BlackElo "2651"]
[TimeControl "180+2"]
[EndTime "14:29:10 PDT"]
[Termination "pKiLz5Rn9b won by resignation"]

1. e4 {[%clk 0:03:01.5]} 1... c6 {[%clk 0:02:55.1]} 2. d4 {[%clk 0:03:00.9]}
2... d5 {[%clk 0:02:55.7]} 3. e5 {[%clk 0:03:02.3]} 3... Bf5 {[%clk 0:02:53.6]}
4. Nf3 {[%clk 0:03:01.9]} 4... e6 {[%clk 0:02:53.4]} 5. Be2 {[%clk 0:02:59.1]}
5... Ne7 {[%clk 0:02:46.1]} 6. O-O {[%clk 0:02:56.7]} 6... Nd7 {[%clk
0:02:46.8]} 7. Nbd2 {[%clk 0:02:56.1]} 7... h6 {[%clk 0:02:41]} 8. c4 {[%clk
0:02:54.9]} 8... g5 {[%clk 0:02:36.3]} 9. b3 {[%clk 0:02:46.3]} 9... Ng6 {[%clk
0:02:14.4]} 10. g3 {[%clk 0:02:35.6]} 10... h5 {[%clk 0:02:06.9]} 11. cxd5
{[%clk 0:02:21.3]} 11... cxd5 {[%clk 0:02:06]} 12. Bb5 {[%clk 0:02:22.2]} 12...
Be7 {[%clk 0:02:03.5]} 13. Nb1 {[%clk 0:02:04.1]} 13... g4 {[%clk 0:02:00.9]}
14. Ne1 {[%clk 0:01:49.7]} 14... h4 {[%clk 0:01:58.2]} 15. Ng2 {[%clk
0:01:50.3]} 15... a6 {[%clk 0:01:43.3]} 16. Bd3 {[%clk 0:01:44.2]} 16... hxg3
{[%clk 0:01:31.6]} 17. hxg3 {[%clk 0:01:27]} 17... Bxd3 {[%clk 0:01:27.1]} 18.
Qxd3 {[%clk 0:01:26.4]} 18... Bg5 {[%clk 0:01:28]} 19. Ba3 {[%clk 0:01:22.7]}
19... Ngxe5 {[%clk 0:01:25.5]} 20. dxe5 {[%clk 0:01:01.5]} 20... Nxe5 {[%clk
0:01:25.3]} 21. Qc3 {[%clk 0:01:02.2]} 21... Nf3+ {[%clk 0:01:24.6]} 22. Qxf3
{[%clk 0:01:03.5]} 22... gxf3 {[%clk 0:01:26.5]} 0-1

[Event "*** Titled Tuesday Blitz"]
[Site "Chess.com"]
[Date "2018.04.03"]
[Round "7"]
[White "maximlavrov"]
[Black "Parhamov"]
[Result "1-0"]
[WhiteElo "2423"]
[BlackElo "2796"]
[TimeControl "180+2"]
[EndTime "14:29:19 PDT"]
[Termination "maximlavrov won by checkmate"]

1. g3 {[%clk 0:03:01.9]} 1... d5 {[%clk 0:02:58.8]} 2. Nf3 {[%clk 0:03:02.4]}
2... c6 {[%clk 0:02:59.8]} 3. Bg2 {[%clk 0:03:03.7]} 3... Bf5 {[%clk 0:03:01.1]}
4. O-O {[%clk 0:03:04.7]} 4... h6 {[%clk 0:03:02.7]} 5. c4 {[%clk 0:03:05.9]}
5... e6 {[%clk 0:03:00.8]} 6. d3 {[%clk 0:03:05.9]} 6... Nf6 {[%clk 0:03:01.4]}
7. cxd5 {[%clk 0:03:06.2]} 7... cxd5 {[%clk 0:02:59.8]} 8. Qb3 {[%clk
0:03:06.8]} 8... Qb6 {[%clk 0:03:00.8]} 9. Qxb6 {[%clk 0:03:07.6]} 9... axb6
{[%clk 0:03:01.7]} 10. Nc3 {[%clk 0:03:09]} 10... Nc6 {[%clk 0:03:02.6]} 11. Nb5
{[%clk 0:03:09.1]} 11... Kd7 {[%clk 0:02:48.1]} 12. a3 {[%clk 0:02:57.4]} 12...
Bc5 {[%clk 0:02:43.9]} 13. Bd2 {[%clk 0:02:55.4]} 13... e5 {[%clk 0:02:31.4]}
14. b4 {[%clk 0:02:51.8]} 14... Be7 {[%clk 0:02:29.1]} 15. Rfc1 {[%clk
0:02:49.8]} 15... e4 {[%clk 0:02:28]} 16. Nfd4 {[%clk 0:02:47.8]} 16... Bg4
{[%clk 0:02:12.3]} 17. dxe4 {[%clk 0:02:44.3]} 17... Nxe4 {[%clk 0:02:12.1]} 18.
Be3 {[%clk 0:02:43.8]} 18... Nf6 {[%clk 0:02:00.9]} 19. h3 {[%clk 0:02:37.8]}
19... Be6 {[%clk 0:02:01.8]} 20. Nxe6 {[%clk 0:02:38.9]} 20... fxe6 {[%clk
0:02:02.5]} 21. Bxb6 {[%clk 0:02:39.9]} 21... Ra6 {[%clk 0:02:03.8]} 22. Be3
{[%clk 0:02:29.8]} 22... Rha8 {[%clk 0:02:04.6]} 23. Rab1 {[%clk 0:02:31]} 23...
Ne8 {[%clk 0:02:04.9]} 24. f4 {[%clk 0:02:28.5]} 24... g6 {[%clk 0:02:04.3]} 25.
Bf2 {[%clk 0:02:26.8]} 25... h5 {[%clk 0:02:05.2]} 26. e4 {[%clk 0:02:27.3]}
26... Nf6 {[%clk 0:02:06.2]} 27. Rd1 {[%clk 0:02:26.7]} 27... Rc8 {[%clk
0:01:55.3]} 28. exd5 {[%clk 0:02:14.3]} 28... exd5 {[%clk 0:01:56.4]} 29. Bxd5
{[%clk 0:02:15.5]} 29... Nxd5 {[%clk 0:01:57.5]} 30. Rxd5+ {[%clk 0:02:17.4]}
30... Ke6 {[%clk 0:01:59.1]} 31. Rd2 {[%clk 0:02:19]} 31... Nd8 {[%clk
0:01:58.8]} 32. Re1+ {[%clk 0:02:19]} 32... Kf7 {[%clk 0:02:00.1]} 33. Rd7
{[%clk 0:02:17.9]} 33... Re6 {[%clk 0:02:01.2]} 34. Nd6+ {[%clk 0:02:17.2]}
34... Rxd6 {[%clk 0:02:01.7]} 35. Rexe7+ {[%clk 0:02:17.9]} 35... Kf6 {[%clk
0:02:02.7]} 36. g4 {[%clk 0:02:09.3]} 36... Rc1+ {[%clk 0:01:53.6]} 37. Kg2
{[%clk 0:02:09.9]} 37... Rc2 {[%clk 0:01:54.9]} 38. Kf3 {[%clk 0:02:10.6]} 38...
Rc3+ {[%clk 0:01:41.1]} 39. Be3 {[%clk 0:02:11.5]} 39... Rxd7 {[%clk 0:01:40.9]}
40. Rxd7 {[%clk 0:02:12.1]} 40... Ne6 {[%clk 0:01:40]} 41. g5+ {[%clk
0:02:08.4]} 41... Kf5 {[%clk 0:01:41.3]} 42. Rf7# {[%clk 0:02:08.7]} 1-0

[Event "*** Titled Tuesday Blitz"]
[Site "Chess.com"]
[Date "2018.04.03"]
[Round "7"]
[White "ZapataCharlesS"]
[Black "Fins0905"]
[Result "1-0"]
[WhiteElo "2677"]
[BlackElo "2592"]
[TimeControl "180+2"]
[EndTime "14:29:21 PDT"]
[Termination "ZapataCharlesS won by resignation"]

1. d4 {[%clk 0:02:59.2]} 1... g6 {[%clk 0:03:00.6]} 2. Nf3 {[%clk 0:02:59.1]}
2... Bg7 {[%clk 0:03:01.9]} 3. g3 {[%clk 0:03:00.3]} 3... c5 {[%clk 0:03:01.8]}
4. Bg2 {[%clk 0:03:02.2]} 4... cxd4 {[%clk 0:03:00.4]} 5. Nxd4 {[%clk
0:03:02.9]} 5... Nc6 {[%clk 0:02:57.5]} 6. Nxc6 {[%clk 0:03:01.3]} 6... bxc6
{[%clk 0:02:57.2]} 7. O-O {[%clk 0:03:03.2]} 7... Nf6 {[%clk 0:02:54.5]} 8. c4
{[%clk 0:02:55]} 8... O-O {[%clk 0:02:48.1]} 9. Nc3 {[%clk 0:02:56.9]} 9... Rb8
{[%clk 0:02:38.7]} 10. Qc2 {[%clk 0:02:42.9]} 10... Qb6 {[%clk 0:02:23.9]} 11.
e4 {[%clk 0:02:33.2]} 11... d6 {[%clk 0:02:21.4]} 12. b3 {[%clk 0:02:33.2]}
12... Be6 {[%clk 0:02:01.3]} 13. Be3 {[%clk 0:02:24.9]} 13... Qa5 {[%clk
0:02:01.6]} 14. Rac1 {[%clk 0:02:24.8]} 14... Rfc8 {[%clk 0:01:35.2]} 15. h3
{[%clk 0:02:22.4]} 15... Nd7 {[%clk 0:01:33.5]} 16. Kh2 {[%clk 0:02:11.3]} 16...
Bxc3 {[%clk 0:01:24.3]} 17. Qxc3 {[%clk 0:02:13.2]} 17... Qxa2 {[%clk
0:01:25.4]} 18. Rb1 {[%clk 0:02:10]} 18... f6 {[%clk 0:01:18]} 19. f4 {[%clk
0:01:59.8]} 19... Bf7 {[%clk 0:01:15.8]} 20. Rb2 {[%clk 0:01:57.9]} 20... Qa3
{[%clk 0:01:14.2]} 21. Rfb1 {[%clk 0:01:59]} 21... Nc5 {[%clk 0:01:11.8]} 22. e5
{[%clk 0:01:56.7]} 22... Na4 {[%clk 0:01:08.9]} 23. Qa5 {[%clk 0:01:51.2]} 23...
Bxc4 {[%clk 0:00:48.9]} 24. Qxa4 {[%clk 0:01:48.1]} 24... Rxb3 {[%clk
0:00:41.9]} 25. Qxc4+ {[%clk 0:01:44.7]} 1-0

[Event "*** Titled Tuesday Blitz"]
[Site "Chess.com"]
[Date "2018.04.03"]
[Round "7"]
[White "Ravan_02"]
[Black "WinnerOleg"]
[Result "1-0"]
[WhiteElo "2458"]
[BlackElo "2340"]
[TimeControl "180+2"]
[EndTime "14:29:31 PDT"]
[Termination "Ravan_02 won by resignation"]

1. e4 {[%clk 0:03:01.9]} 1... e6 {[%clk 0:02:58]} 2. d3 {[%clk 0:02:58.8]} 2...
d5 {[%clk 0:02:59.4]} 3. Nd2 {[%clk 0:03:00.1]} 3... g6 {[%clk 0:02:57.1]} 4.
Ngf3 {[%clk 0:03:01.2]} 4... Bg7 {[%clk 0:02:57.9]} 5. g3 {[%clk 0:03:02.6]}
5... Ne7 {[%clk 0:02:57.1]} 6. Bg2 {[%clk 0:03:03.8]} 6... O-O {[%clk
0:02:58.7]} 7. O-O {[%clk 0:03:05]} 7... b5 {[%clk 0:03:00.2]} 8. Re1 {[%clk
0:03:06]} 8... Bb7 {[%clk 0:02:57.6]} 9. e5 {[%clk 0:03:07.3]} 9... d4 {[%clk
0:02:56.3]} 10. Ne4 {[%clk 0:03:05.1]} 10... Bxe4 {[%clk 0:02:37.4]} 11. Rxe4
{[%clk 0:03:05.4]} 11... c5 {[%clk 0:02:39.1]} 12. Bg5 {[%clk 0:03:05.7]} 12...
Nbc6 {[%clk 0:02:38.2]} 13. Qd2 {[%clk 0:03:06.4]} 13... Qd7 {[%clk 0:02:23]}
14. h4 {[%clk 0:03:07]} 14... f6 {[%clk 0:02:09.2]} 15. exf6 {[%clk 0:03:07.4]}
15... Bxf6 {[%clk 0:02:11.1]} 16. Rae1 {[%clk 0:02:57.6]} 16... Rae8 {[%clk
0:01:22.1]} 17. Bh6 {[%clk 0:02:33.9]} 17... e5 {[%clk 0:01:07.3]} 18. Bxf8
{[%clk 0:02:32.3]} 18... Rxf8 {[%clk 0:01:08.4]} 19. Nxe5 {[%clk 0:02:19.6]}
19... Nxe5 {[%clk 0:01:06.8]} 20. Rxe5 {[%clk 0:02:21.5]} 20... Bxe5 {[%clk
0:01:08.2]} 21. Rxe5 {[%clk 0:02:22.8]} 21... Qd6 {[%clk 0:01:00.9]} 22. Qe2
{[%clk 0:02:18.5]} 22... Nf5 {[%clk 0:00:54.2]} 23. Rd5 {[%clk 0:02:19.1]} 23...
Qc7 {[%clk 0:00:33.3]} 24. Qe6+ {[%clk 0:02:16.4]} 24... Kh8 {[%clk 0:00:34.5]}
25. Rd7 {[%clk 0:02:11.3]} 25... Qc8 {[%clk 0:00:21.7]} 26. Qe5+ {[%clk
0:02:09.9]} 26... Kg8 {[%clk 0:00:21.5]} 27. Bd5+ {[%clk 0:02:10.5]} 1-0

[Event "*** Titled Tuesday Blitz"]
[Site "Chess.com"]
[Date "2018.04.03"]
[Round "7"]
[White "julinha97"]
[Black "lukas_111111"]
[Result "1-0"]
[WhiteElo "2231"]
[BlackElo "2489"]
[TimeControl "180+2"]
[EndTime "14:29:54 PDT"]
[Termination "julinha97 won by resignation"]

1. e4 {[%clk 0:03:01.9]} 1... c5 {[%clk 0:02:58.3]} 2. Nf3 {[%clk 0:03:02.7]}
2... d6 {[%clk 0:02:59.4]} 3. d4 {[%clk 0:03:03.4]} 3... cxd4 {[%clk 0:03:00.6]}
4. Nxd4 {[%clk 0:03:05.1]} 4... Nf6 {[%clk 0:03:01.7]} 5. Nc3 {[%clk 0:03:06.7]}
5... a6 {[%clk 0:03:03.3]} 6. Be3 {[%clk 0:03:06.7]} 6... e6 {[%clk 0:03:02.9]}
7. g4 {[%clk 0:03:06.8]} 7... h6 {[%clk 0:03:00.4]} 8. Bg2 {[%clk 0:03:06.3]}
8... e5 {[%clk 0:02:59.5]} 9. Nf5 {[%clk 0:02:37.1]} 9... g6 {[%clk 0:03:00.3]}
10. Qe2 {[%clk 0:02:34.5]} 10... gxf5 {[%clk 0:02:59.6]} 11. exf5 {[%clk
0:02:35.8]} 11... Rg8 {[%clk 0:03:00.5]} 12. h3 {[%clk 0:02:33.6]} 12... Nc6
{[%clk 0:02:56.1]} 13. O-O-O {[%clk 0:02:31.4]} 13... Bd7 {[%clk 0:02:57.1]} 14.
f4 {[%clk 0:02:29.2]} 14... Rc8 {[%clk 0:02:48.9]} 15. Qf2 {[%clk 0:02:07.8]}
15... Qa5 {[%clk 0:02:22.2]} 16. a3 {[%clk 0:01:33.1]} 16... Nd4 {[%clk
0:02:06.4]} 17. fxe5 {[%clk 0:01:16.9]} 17... dxe5 {[%clk 0:02:05.1]} 18. Rhe1
{[%clk 0:01:14.9]} 18... Be7 {[%clk 0:01:38.6]} 19. Bxd4 {[%clk 0:01:14.3]}
19... exd4 {[%clk 0:01:39.4]} 20. Qxd4 {[%clk 0:01:15.9]} 20... Rxc3 {[%clk
0:01:27.1]} 21. Qxf6 {[%clk 0:01:11.3]} 21... Rxc2+ {[%clk 0:00:58.8]} 22. Kxc2
{[%clk 0:01:07.8]} 22... Qa4+ {[%clk 0:00:49.4]} 23. b3 {[%clk 0:01:05.5]} 1-0

[Event "*** Titled Tuesday Blitz"]
[Site "Chess.com"]
[Date "2018.04.03"]
[Round "7"]
[White "TrimitziosP7"]
[Black "olomi007"]
[Result "0-1"]
[WhiteElo "2600"]
[BlackElo "2555"]
[TimeControl "180+2"]
[EndTime "14:30:15 PDT"]
[Termination "olomi007 won by resignation"]

1. Nf3 {[%clk 0:03:01.9]} 1... Nf6 {[%clk 0:02:59.7]} 2. c4 {[%clk 0:03:00]}
2... e6 {[%clk 0:03:00.9]} 3. g3 {[%clk 0:02:59.9]} 3... d5 {[%clk 0:03:01]} 4.
Bg2 {[%clk 0:03:00.9]} 4... g6 {[%clk 0:02:59.7]} 5. O-O {[%clk 0:03:01.8]} 5...
Bg7 {[%clk 0:03:00.9]} 6. d4 {[%clk 0:03:03.4]} 6... O-O {[%clk 0:03:01.9]} 7.
Qc2 {[%clk 0:03:05]} 7... b6 {[%clk 0:03:02.2]} 8. Nbd2 {[%clk 0:03:06.4]} 8...
Bb7 {[%clk 0:03:02.7]} 9. b3 {[%clk 0:03:08]} 9... Nbd7 {[%clk 0:02:58.8]} 10.
Bb2 {[%clk 0:03:08.5]} 10... Rc8 {[%clk 0:02:51.3]} 11. Rac1 {[%clk 0:03:08.9]}
11... Qe7 {[%clk 0:02:48.8]} 12. Rfe1 {[%clk 0:03:07.6]} 12... c5 {[%clk
0:02:48.5]} 13. Qb1 {[%clk 0:03:07.9]} 13... Rfd8 {[%clk 0:02:48]} 14. e3 {[%clk
0:03:06.7]} 14... Ne4 {[%clk 0:02:41.8]} 15. Nxe4 {[%clk 0:03:06.9]} 15... dxe4
{[%clk 0:02:41.8]} 16. Nd2 {[%clk 0:03:08.4]} 16... f5 {[%clk 0:02:40.2]} 17. f3
{[%clk 0:03:05.4]} 17... cxd4 {[%clk 0:02:24.7]} 18. exd4 {[%clk 0:03:02.7]}
18... Nc5 {[%clk 0:02:21.5]} 19. fxe4 {[%clk 0:03:00.1]} 19... Bxd4+ {[%clk
0:02:20]} 20. Bxd4 {[%clk 0:03:01.5]} 20... Rxd4 {[%clk 0:02:21.1]} 21. Rcd1
{[%clk 0:02:53.5]} 21... Rcd8 {[%clk 0:02:17.4]} 22. Nf1 {[%clk 0:02:52.8]}
22... Bxe4 {[%clk 0:02:11.5]} 23. Bxe4 {[%clk 0:02:52.4]} 23... Nxe4 {[%clk
0:02:11.5]} 24. Rxd4 {[%clk 0:02:52.2]} 24... Rxd4 {[%clk 0:02:12]} 25. Qb2
{[%clk 0:02:53.5]} 25... Qc5 {[%clk 0:02:09.9]} 26. Kh1 {[%clk 0:02:53.3]} 26...
b5 {[%clk 0:02:06.2]} 27. cxb5 {[%clk 0:02:37.1]} 27... Qd5 {[%clk 0:02:00.6]}
28. Kg1 {[%clk 0:02:38]} 28... Ng5 {[%clk 0:01:47.7]} 29. h4 {[%clk 0:01:36.2]}
29... Nf3+ {[%clk 0:01:46.6]} 30. Kf2 {[%clk 0:01:37.4]} 30... Nxe1 {[%clk
0:01:46.3]} 31. Kxe1 {[%clk 0:01:39.3]} 31... Rd1+ {[%clk 0:01:39.9]} 32. Kf2
{[%clk 0:01:39.3]} 32... Qxb5 {[%clk 0:01:31.7]} 33. Ne3 {[%clk 0:01:38.3]}
33... Qc5 {[%clk 0:01:22.2]} 34. Qf6 {[%clk 0:01:31]} 34... Rd2+ {[%clk
0:01:21.4]} 35. Kf3 {[%clk 0:01:21.2]} 35... Qc6+ {[%clk 0:01:13.7]} 36. Kf4
{[%clk 0:01:20.9]} 36... Qe4+ {[%clk 0:01:09]} 0-1

[Event "*** Titled Tuesday Blitz"]
[Site "Chess.com"]
[Date "2018.04.03"]
[Round "7"]
[White "denizozen"]
[Black "TigranLPetrosyan"]
[Result "1-0"]
[WhiteElo "2646"]
[BlackElo "2649"]
[TimeControl "180+2"]
[EndTime "14:30:31 PDT"]
[Termination "denizozen won by resignation"]

1. e4 {[%clk 0:03:01.9]} 1... g6 {[%clk 0:02:59.8]} 2. d4 {[%clk 0:03:02.5]}
2... Bg7 {[%clk 0:03:01.7]} 3. Nc3 {[%clk 0:03:01.6]} 3... a6 {[%clk 0:03:03.1]}
4. Nf3 {[%clk 0:03:02]} 4... d6 {[%clk 0:03:04.5]} 5. Be2 {[%clk 0:03:02.6]}
5... b5 {[%clk 0:03:05.4]} 6. a4 {[%clk 0:03:02.6]} 6... b4 {[%clk 0:03:04.7]}
7. Nd5 {[%clk 0:03:03.8]} 7... Bb7 {[%clk 0:03:06.6]} 8. O-O {[%clk 0:03:03.8]}
8... e6 {[%clk 0:03:06.3]} 9. Bg5 {[%clk 0:03:04.3]} 9... f6 {[%clk 0:03:06.3]}
10. Nf4 {[%clk 0:03:05.3]} 10... fxg5 {[%clk 0:02:42.9]} 11. Nxe6 {[%clk
0:03:05.1]} 11... Qe7 {[%clk 0:02:44.8]} 12. Bc4 {[%clk 0:03:04.4]} 12... g4
{[%clk 0:02:36.9]} 13. Nfg5 {[%clk 0:03:01]} 13... Nh6 {[%clk 0:02:31.1]} 14.
Re1 {[%clk 0:02:57.2]} 14... Nc6 {[%clk 0:02:27.4]} 15. e5 {[%clk 0:02:43.2]}
15... dxe5 {[%clk 0:02:15.4]} 16. d5 {[%clk 0:02:39.7]} 16... Nd8 {[%clk
0:01:58.3]} 17. d6 {[%clk 0:02:16.9]} 17... cxd6 {[%clk 0:01:14.8]} 18. Nxg7+
{[%clk 0:02:15.9]} 18... Kd7 {[%clk 0:01:04.1]} 19. N7e6 {[%clk 0:02:10.2]}
19... Nxe6 {[%clk 0:00:59.8]} 20. Nxe6 {[%clk 0:02:11.1]} 20... Ke8 {[%clk
0:00:47.6]} 21. Bd5 {[%clk 0:01:50.9]} 21... Nf5 {[%clk 0:00:43.7]} 22. Bxb7
{[%clk 0:01:36.4]} 22... Qxb7 {[%clk 0:00:45.6]} 23. Qxg4 {[%clk 0:01:37.5]}
23... Kf7 {[%clk 0:00:44.7]} 24. Ng5+ {[%clk 0:01:37]} 24... Kg7 {[%clk
0:00:45.8]} 25. Ne6+ {[%clk 0:01:36.8]} 25... Kf6 {[%clk 0:00:44.4]} 26. Ng5
{[%clk 0:01:35.7]} 26... h5 {[%clk 0:00:44.3]} 27. Ne4+ {[%clk 0:01:34.4]} 27...
Kg7 {[%clk 0:00:45.8]} 28. Qg5 {[%clk 0:01:30.5]} 28... Rhf8 {[%clk 0:00:46.7]}
29. Rad1 {[%clk 0:01:29.4]} 29... Rad8 {[%clk 0:00:47.5]} 30. Rd2 {[%clk
0:01:23.2]} 30... d5 {[%clk 0:00:37.8]} 31. Ng3 {[%clk 0:01:23.1]} 31... Nxg3
{[%clk 0:00:32.5]} 32. hxg3 {[%clk 0:01:25]} 32... Rf5 {[%clk 0:00:31.9]} 33.
Qxd8 {[%clk 0:01:25.4]} 1-0